fUSD/lending_fUSD_20260405
["ID","MTS","AMOUNT","RATE_DAILY","PERIOD"]
[419776292,1775374243715,-553.958559,0.00011582,2]
[419776293,1775374243725,-553.958559,0.00011582,2]
[419776294,1775374243735,-151.0,0.00011582,2]
[419776295,1775374243745,-151.0,0.00011582,2]
[419776296,1775374243754,-151.0,0.00011582,2]
[419776297,1775374243763,-151.0,0.00011582,2]
[419776298,1775374243773,-151.0,0.00011582,2]
[419776299,1775374243782,-156.571505,0.00011582,2]
[419776300,1775374243792,-156.571505,0.00011582,2]
[419776301,1775374243801,-489496.1972991,0.00011582,2]
[419776302,1775374243810,-394.0610441,0.00011602,2]
[419776303,1775374243820,-2000.0,0.00011616,2]
[419776304,1775374243829,-2000.0,0.00011616,2]
[419776305,1775374243838,-2000.0,0.00011616,2]
[419776306,1775374243848,-1068.30323739,0.00011616,2]
[419776307,1775374243857,-1182.8794533,0.00011636,2]
[419776308,1775374243868,-658.816115,0.00011672,2]
[419776309,1775374243878,-7054.052154,0.00011672,2]
[419776310,1775374243887,-499.52,0.00011706,2]
[419776311,1775374243897,-6490.302858,0.00011728,2]
[419776312,1775374243907,-2000.0,0.00011734,2]
[419776313,1775374243917,-38812.82348841,0.00011747,2]
[419776314,1775374243927,-1219.14,0.0001176,2]
[419776315,1775374243937,-2000.0,0.00011816,2]
[419776316,1775374243947,-151.0,0.00011869,2]
[419776317,1775374243956,-163.45,0.0001187,2]
[419776318,1775374243966,-3300.0,0.000119,4]
[419776319,1775374243976,-2351.0,0.00011967,2]
[419776320,1775374243985,-433.0,0.00011967,2]
[419776321,1775374243994,-157.0,0.00012,2]
[419776322,1775374244004,-157.0,0.00012,2]
[419776323,1775374244013,-157.0,0.00012,2]
[419776324,1775374244023,-203.96604798,0.00012034,2]
[419776325,1775374244035,-1447.8710731,0.00012034,2]
[419776326,1775374244044,-1219.14,0.00012034,2]
[419776327,1775374244054,-2415.04157441,0.00012164,2]
[419776328,1775374244063,-500.0,0.00012164,2]
[419776329,1775374244072,-2500.0,0.00012164,2]
[419776330,1775374244082,-638.426904,0.0001225,2]
[419776331,1775374244091,-4065.220287,0.0001225,2]
[419776332,1775374244100,-499.52,0.00012263,2]
[419776333,1775374244110,-1219.19,0.00012308,2]
[419776334,1775374244119,-332.258444,0.00012329,2]
[419776335,1775374244128,-332.258444,0.00012329,2]
[419776336,1775374244137,-332.258444,0.00012329,2]
[419776337,1775374244147,-332.258444,0.00012329,2]
[419776338,1775374244156,-332.258444,0.00012329,2]
[419776339,1775374244165,-332.258444,0.00012329,2]
[419776340,1775374244174,-332.258444,0.00012329,2]
[419776341,1775374244183,-332.258444,0.00012329,2]
[419776342,1775374244192,-38812.82348841,0.0001233,2]
[419776343,1775374244202,-250.0,0.00012332,2]
[419776344,1775374244213,-1600.0,0.00012348,2]
[419776345,1775374244225,-500.0,0.00012364,2]
[419776346,1775374244235,-151.0,0.00012486,2]
[419776347,1775374244244,-309.90283068,0.000125,2]
[419776348,1775374244254,-2000.0,0.0001258,2]
[419776349,1775374244263,-2000.0,0.0001258,2]
[419776350,1775374244272,-2000.0,0.0001258,2]
[419776351,1775374244281,-2000.0,0.0001258,2]
[419776352,1775374244290,-2000.0,0.0001258,2]
[419776353,1775374244299,-2000.0,0.0001258,2]
[419776354,1775374244308,-2000.0,0.0001258,2]
[419776355,1775374244317,-2000.0,0.0001258,2]
[419776356,1775374244326,-2000.0,0.0001258,2]
[419776357,1775374244335,-2000.0,0.0001258,2]
[419776358,1775374244346,-2000.0,0.0001258,2]
[419776359,1775374244357,-2000.0,0.0001258,2]
[419776360,1775374244368,-2000.0,0.0001258,2]
[419776361,1775374244377,-2000.0,0.0001258,2]
[419776362,1775374244388,-2000.0,0.0001258,2]
[419776363,1775374244399,-362.45,0.0001261,2]
[419776364,1775374244408,-500.0,0.00012685,2]
[419776365,1775374244419,-309.28131584,0.00012712,2]
[419776366,1775374244431,-474.30692472,0.00012743,2]
[419776367,1775374244441,-666.62460364,0.00012758,2]
[419776368,1775374244450,-178.083943,0.00012765,2]
[419776369,1775374244460,-151.0,0.00012768,2]
[419776370,1775374244470,-151.0,0.00012768,2]
[419776371,1775374244480,-151.0,0.00012768,2]
[419776372,1775374244490,-151.0,0.00012768,2]
[419776373,1775374244499,-151.0,0.00012768,2]
[419776374,1775374244509,-167.299436,0.00012768,2]
[419776375,1775374244519,-851.442194,0.00012768,2]
[419776376,1775374244528,-851.442194,0.00012768,2]
[419776377,1775374244537,-851.442194,0.00012768,2]
[419776378,1775374244546,-851.442194,0.00012768,2]
[419776379,1775374244556,-151.0,0.00012768,2]
[419776380,1775374244566,-151.0,0.00012768,2]
[419776381,1775374244575,-151.0,0.00012768,2]
[419776382,1775374244584,-332.258444,0.00012768,2]
[419776383,1775374244594,-332.258444,0.00012768,2]
[419776384,1775374244603,-332.258444,0.00012768,2]
[419776385,1775374244612,-332.258444,0.00012768,2]
[419776386,1775374244622,-553.958559,0.00012768,2]
[419776387,1775374244631,-553.958559,0.00012768,2]
[419776388,1775374244641,-553.958559,0.00012768,2]
[419776389,1775374244650,-553.958559,0.00012768,2]
[419776390,1775374244659,-151.0,0.00012768,2]
[419776391,1775374244668,-151.0,0.00012768,2]
[419776392,1775374244679,-151.0,0.00012768,2]
[419776393,1775374244688,-151.0,0.00012768,2]
[419776394,1775374244699,-158.086667,0.00012768,2]
[419776395,1775374244710,-156.571505,0.00012768,2]
[419776396,1775374244719,-156.571505,0.00012768,2]
[419776397,1775374244728,-489496.1972991,0.00012768,2]
[419776398,1775374244738,-394.0610441,0.00012807,2]
[419776399,1775374244747,-499.52,0.00012821,2]
[419776400,1775374244756,-418.33,0.00012832,2]
[419776401,1775374244765,-353.93069988,0.0001285,2]
[419776402,1775374244775,-1182.8794533,0.00012875,2]
[419776403,1775374244786,-2000.0,0.00012908,2]
[419776404,1775374244795,-38812.82348841,0.00012912,2]
[419776405,1775374244804,-2000.0,0.00012974,2]
[419776406,1775374244813,-2000.0,0.00012974,2]
[419776407,1775374244822,-2000.0,0.00012974,2]
[419776408,1775374244831,-2000.0,0.00012974,2]
[419776409,1775374244841,-2000.0,0.00012974,2]
[419776410,1775374244851,-2000.0,0.00012974,2]
[419776411,1775374244860,-2000.0,0.00012974,2]
[419776412,1775374244869,-2000.0,0.00012974,2]
[419776413,1775374245176,-2000.0,0.00012974,2]
[419776414,1775374245186,-2000.0,0.00012974,2]
[419776415,1775374245195,-2000.0,0.00012974,2]
[419776416,1775374245206,-2000.0,0.00012974,2]
[419776417,1775374245215,-2000.0,0.00012974,2]
[419776418,1775374245225,-2000.0,0.00012974,2]
[419776419,1775374245234,-2000.0,0.00012974,2]
[419776420,1775374245244,-2000.0,0.00012974,2]
[419776421,1775374245255,-2000.0,0.00012974,2]
[419776422,1775374245264,-2000.0,0.00012974,2]
[419776423,1775374245274,-2000.0,0.00012974,2]
[419776424,1775374245283,-2000.0,0.00012974,2]
[419776425,1775374245293,-2000.0,0.00012976,2]
[419776426,1775374245302,-2000.0,0.00012976,2]
[419776427,1775374245311,-2000.0,0.00012976,2]
[419776428,1775374245321,-2000.0,0.00012976,2]
[419776429,1775374245330,-2000.0,0.00012976,2]
[419776430,1775374245339,-2000.0,0.00012976,2]
[419776431,1775374245349,-2000.0,0.00012976,2]
[419776432,1775374245358,-2000.0,0.00012976,2]
[419776433,1775374245367,-2000.0,0.00012976,2]
[419776434,1775374245376,-2000.0,0.00012976,2]
[419776435,1775374245386,-2000.0,0.00012976,2]
[419776436,1775374245395,-2000.0,0.00012976,2]
[419776437,1775374245405,-2000.0,0.00012976,2]
[419776438,1775374245414,-2000.0,0.00012976,2]
[419776439,1775374245424,-2000.0,0.00012976,2]
[419776440,1775374245434,-2000.0,0.00012976,2]
[419776441,1775374245445,-1370.0,0.00012976,2]
[419776442,1775374245455,-250.0,0.00013,2]
[419776443,1775374245465,-160.0,0.00013,2]
[419776444,1775374245474,-508.0,0.00013111,2]
[419776445,1775374245484,-173.7678398,0.00013129,2]
[419776446,1775374245495,-28985.77,0.00013141,2]
[419776447,1775374245505,-3292.0,0.00013163,2]
[419776448,1775374245514,-736.0,0.00013164,2]
[419776449,1775374245524,-27882.96674803,0.0001325,2]
[419776450,1775374245533,-274.57636762,0.0001325,2]
[419776451,1775374245542,-2947.22249094,0.0001325,2]
[419776452,1775374245551,-3096.82,0.00013321,2]
[419776453,1775374245560,-499.52,0.00013378,2]
[419776454,1775374245570,-468.17,0.00013425,2]
[419776455,1775374245580,-38812.82348841,0.00013495,2]
[419776456,1775374245590,-1000.0,0.000135,2]
[419776457,1775374245599,-362.45,0.00013515,2]
[419776458,1775374245610,-3000.0,0.00013534,2]
[419776460,1775374245619,-1600.0,0.00013582,2]
[419776461,1775374245630,-418.33,0.00013648,2]
[419776462,1775374245640,-500.0,0.00013698,2]
[419776463,1775374245649,-500.0,0.00013698,2]
[419776464,1775374245658,-500.0,0.00013698,2]
[419776465,1775374245668,-500.0,0.00013698,2]
[419776466,1775374245679,-500.0,0.00013698,2]
[419776467,1775374245689,-474.028,0.00013698,2]
[419776468,1775374245701,-500.0,0.00013698,2]
[419776469,1775374245710,-500.0,0.00013698,2]
[419776470,1775374245720,-534.54,0.00013698,2]
[419776471,1775374245729,-500.0,0.00013698,2]
[419776472,1775374245739,-500.8,0.00013698,2]
[419776473,1775374245748,-500.0,0.00013698,2]
[419776474,1775374245758,-500.0,0.00013698,2]
[419776475,1775374245767,-500.0,0.00013698,2]
[419776476,1775374245776,-500.0,0.00013698,2]
[419776477,1775374245786,-500.0,0.00013698,2]
[419776478,1775374245795,-500.0,0.00013698,2]
[419776479,1775374245804,-500.0,0.00013698,2]
[419776480,1775374245814,-500.0,0.00013698,2]
[419776481,1775374245823,-342.04805757,0.00013698,2]
[419776482,1775374245832,-500.0,0.00013698,2]
[419776483,1775374245842,-500.0,0.00013698,2]
[419776484,1775374245852,-500.0,0.00013698,2]
[419776485,1775374245861,-500.0,0.00013698,2]
[419776486,1775374245870,-500.0,0.00013698,2]
[419776487,1775374245880,-500.0,0.00013698,2]
[419776488,1775374245889,-500.0,0.00013698,2]
[419776489,1775374245900,-500.0,0.00013698,2]
[419776490,1775374245909,-500.0,0.00013698,2]
[419776491,1775374245918,-504.35317897,0.00013698,2]
[419776492,1775374245927,-536.08,0.00013698,2]
[419776493,1775374245937,-536.08,0.00013698,2]
[419776494,1775374245946,-500.0,0.00013698,2]
[419776495,1775374245956,-500.0,0.00013698,2]
[419776496,1775374245965,-500.0,0.00013698,2]
[419776497,1775374245974,-500.0,0.00013698,2]
[419776498,1775374245984,-500.0,0.00013698,2]
[419776499,1775374245993,-500.0,0.00013698,2]
[419776500,1775374246002,-500.0,0.00013698,2]
[419776501,1775374246012,-564.47521126,0.00013698,2]
[419776502,1775374246021,-698.2,0.00013698,2]
[419776503,1775374246032,-698.2,0.00013698,2]
[419776504,1775374246041,-500.0,0.00013698,2]
[419776505,1775374246050,-500.0,0.00013698,2]
[419776506,1775374246059,-500.0,0.00013698,2]
[419776507,1775374246069,-500.0,0.00013698,2]
[419776508,1775374246078,-500.0,0.00013698,2]
[419776509,1775374246088,-500.0,0.00013698,2]
[419776510,1775374246097,-500.0,0.00013698,2]
[419776511,1775374246106,-500.0,0.00013698,2]
[419776512,1775374246115,-500.0,0.00013698,2]
[419776513,1775374246124,-500.0,0.00013698,2]
[419776514,1775374246133,-500.0,0.00013698,2]
[419776515,1775374246142,-500.0,0.00013698,2]
[419776516,1775374246151,-500.0,0.00013698,2]
[419776517,1775374246161,-500.0,0.00013698,2]
[419776518,1775374246170,-500.0,0.00013698,2]
[419776519,1775374246179,-500.0,0.00013698,2]
[419776520,1775374246189,-500.0,0.00013698,2]
[419776521,1775374246198,-500.0,0.00013698,2]
[419776522,1775374246208,-500.0,0.00013698,2]
[419776523,1775374246217,-500.0,0.00013698,2]
[419776524,1775374246227,-500.0,0.00013698,2]
[419776525,1775374246237,-500.0,0.00013698,2]
[419776526,1775374246246,-500.0,0.00013698,2]
[419776527,1775374246256,-500.0,0.00013698,2]
[419776528,1775374246266,-500.0,0.00013698,2]
[419776529,1775374246276,-500.0,0.00013698,2]
[419776530,1775374246286,-500.0,0.00013698,2]
[419776531,1775374246297,-500.0,0.00013698,2]
[419776532,1775374246306,-500.0,0.00013698,2]
[419776533,1775374246315,-500.0,0.00013698,2]
[419776534,1775374246324,-500.0,0.00013698,2]
[419776535,1775374246334,-500.0,0.00013698,2]
[419776536,1775374246343,-500.0,0.00013698,2]
[419776537,1775374246352,-500.0,0.00013698,2]
[419776538,1775374246361,-500.0,0.00013698,2]
[419776539,1775374246371,-500.0,0.00013698,2]
[419776540,1775374246380,-500.0,0.00013698,2]
[419776541,1775374246390,-500.0,0.00013698,2]
[419776542,1775374246400,-500.0,0.00013698,2]
[419776543,1775374246411,-500.0,0.00013698,2]
[419776544,1775374246423,-500.0,0.00013698,2]
[419776545,1775374246434,-500.0,0.00013698,2]
[419776546,1775374246444,-500.0,0.00013698,2]
[419776547,1775374246453,-500.0,0.00013698,2]
[419776549,1775374246462,-500.0,0.00013698,2]
[419776550,1775374246472,-500.0,0.00013698,2]
[419776552,1775374246481,-500.0,0.00013698,2]
[419776554,1775374246490,-500.0,0.00013698,2]
[419776556,1775374246500,-500.0,0.00013698,2]
[419776558,1775374246509,-500.0,0.00013698,2]
[419776560,1775374246518,-500.0,0.00013698,2]
[419776561,1775374246527,-500.0,0.00013698,2]
[419776563,1775374246537,-500.0,0.00013698,2]
[419776565,1775374246549,-500.0,0.00013698,2]
[419776566,1775374246559,-500.0,0.00013698,2]
[419776567,1775374246568,-500.0,0.00013698,2]
[419776568,1775374246578,-500.0,0.00013698,2]
[419776569,1775374246587,-500.0,0.00013698,2]
[419776570,1775374246598,-500.0,0.00013698,2]
[419776571,1775374246608,-500.0,0.00013698,2]
[419776572,1775374246617,-500.0,0.00013698,2]
[419776573,1775374246627,-500.0,0.00013698,2]
[419776574,1775374246636,-500.0,0.00013698,2]
[419776575,1775374246646,-500.0,0.00013698,2]
[419776576,1775374246655,-500.0,0.00013698,2]
[419776577,1775374246665,-500.0,0.00013698,2]
[419776578,1775374246674,-500.0,0.00013698,2]
[419776579,1775374246684,-500.0,0.00013698,2]
[419776580,1775374246694,-500.0,0.00013698,2]
[419776581,1775374246703,-500.0,0.00013698,2]
[419776582,1775374246713,-500.0,0.00013698,2]
[419776583,1775374246722,-500.0,0.00013698,2]
[419776584,1775374246731,-500.0,0.00013698,2]
[419776585,1775374246740,-500.0,0.00013698,2]
[419776586,1775374246750,-551.83212521,0.00013698,2]
[419776587,1775374246760,-500.0,0.00013698,2]
[419776588,1775374246770,-500.0,0.00013698,2]
[419776589,1775374246780,-500.0,0.00013698,2]
[419776590,1775374246789,-500.0,0.00013698,2]
[419776591,1775374246800,-500.0,0.00013698,2]
[419776592,1775374246809,-500.0,0.00013698,2]
[419776593,1775374246820,-500.0,0.00013698,2]
[419776594,1775374246830,-500.0,0.00013698,2]
[419776595,1775374246839,-500.0,0.00013698,2]
[419776596,1775374246848,-500.0,0.00013698,2]
[419776597,1775374246858,-500.0,0.00013698,2]
[419776598,1775374246868,-500.0,0.00013698,2]
[419776599,1775374246877,-500.0,0.00013698,2]
[419776600,1775374246887,-500.0,0.00013698,2]
[419776601,1775374246897,-502.52784413,0.00013698,2]
[419776602,1775374246906,-500.0,0.00013698,2]
[419776603,1775374246916,-500.0,0.00013698,2]
[419776604,1775374246925,-500.0,0.00013698,2]
[419776605,1775374246934,-500.0,0.00013698,2]
[419776606,1775374246943,-500.0,0.00013698,2]
[419776607,1775374246953,-500.0,0.00013698,2]
[419776608,1775374246963,-500.0,0.00013698,2]
[419776609,1775374246972,-500.0,0.00013698,2]
[419776610,1775374246982,-500.0,0.00013698,2]
[419776611,1775374246992,-500.0,0.00013698,2]
[419776612,1775374247001,-500.0,0.00013698,2]
[419776613,1775374247011,-500.0,0.00013698,2]
[419776614,1775374247020,-500.0,0.00013698,2]
[419776615,1775374247029,-500.0,0.00013698,2]
[419776616,1775374247038,-150.0,0.00013699,2]
[419776617,1775374247048,-150.0,0.00013699,2]
[419776618,1775374247058,-150.0,0.00013699,2]
[419776619,1775374247067,-150.0,0.00013699,2]
[419776620,1775374247078,-150.0,0.00013699,2]
[419776621,1775374247087,-150.0,0.00013699,2]
[419776622,1775374247097,-200.0,0.00013699,2]
[419776623,1775374247106,-157.85,0.00013699,2]
[419776624,1775374247116,-5957.33,0.00013699,2]
[419776625,1775374247125,-151.0,0.00013699,2]
[419776626,1775374247135,-151.0,0.00013699,2]
[419776627,1775374247145,-151.0,0.00013699,2]
[419776628,1775374247155,-151.0,0.00013699,2]
[419776629,1775374247164,-166.66,0.00013699,2]
[419776630,1775374247174,-488.611803,0.00013699,2]
[419776631,1775374247183,-488.611803,0.00013699,2]
[419776632,1775374247191,-488.611803,0.00013699,2]
[419776633,1775374247200,-488.611803,0.00013699,2]
[419776634,1775374247211,-488.611803,0.00013699,2]
[419776635,1775374247220,-488.611803,0.00013699,2]
[419776636,1775374247230,-488.611803,0.00013699,2]
[419776637,1775374247239,-488.611803,0.00013699,2]
[419776638,1775374247249,-488.611803,0.00013699,2]
[419776639,1775374247259,-488.611803,0.00013699,2]
[419776640,1775374247269,-488.611803,0.00013699,2]
[419776641,1775374247278,-488.611803,0.00013699,2]
[419776642,1775374247288,-717.06,0.00013699,2]
[419776643,1775374247297,-500.13152132,0.00013699,2]
[419776644,1775374247306,-500.0,0.00013699,2]
[419776645,1775374247317,-500.0,0.00013699,2]
[419776646,1775374247327,-500.0,0.00013699,2]
[419776647,1775374247336,-500.0,0.00013699,2]
[419776648,1775374247345,-500.0,0.00013699,2]
[419776649,1775374247354,-500.0,0.00013699,2]
[419776650,1775374247364,-500.0,0.00013699,2]
[419776651,1775374247373,-500.0,0.00013699,2]
[419776652,1775374247382,-500.0,0.00013699,2]
[419776653,1775374247391,-500.0,0.00013699,2]
[419776654,1775374247400,-403.93256284,0.00013699,2]
[419776655,1775374247410,-500.0,0.00013699,2]
[419776656,1775374247419,-385.86149772,0.00013699,2]
[419776657,1775374247428,-500.0,0.00013699,2]
[419776658,1775374247438,-500.0,0.00013699,2]
[419776659,1775374247447,-164.79711181,0.00013699,2]
[419776660,1775374247456,-500.0,0.00013699,2]
[419776661,1775374247466,-500.0,0.00013699,2]
[419776662,1775374247475,-339.79133416,0.00013699,2]
[419776663,1775374247484,-500.0,0.00013699,2]
[419776664,1775374247494,-500.0,0.00013699,2]
[419776665,1775374247504,-500.0,0.00013699,2]
[419776666,1775374247514,-500.0,0.00013699,2]
[419776667,1775374247523,-500.0,0.00013699,2]
[419776668,1775374247532,-500.0,0.00013699,2]
[419776669,1775374247542,-500.0,0.00013699,2]
[419776670,1775374247551,-500.0,0.00013699,2]
[419776671,1775374247560,-500.0,0.00013699,2]
[419776672,1775374247569,-161.91170216,0.00013699,2]
[419776673,1775374247578,-500.0,0.00013699,2]
[419776674,1775374247587,-500.0,0.00013699,2]
[419776675,1775374247597,-598.99606082,0.00013699,2]
[419776676,1775374247607,-500.0,0.00013699,2]
[419776677,1775374247615,-500.0,0.00013699,2]
[419776678,1775374247625,-500.0,0.00013699,2]
[419776679,1775374247634,-500.0,0.00013699,2]
[419776680,1775374247643,-500.0,0.00013699,2]
[419776681,1775374247652,-515.7358709,0.00013699,2]
[419776682,1775374247662,-168.69935806,0.00013699,2]
[419776683,1775374247672,-500.0,0.00013699,2]
[419776684,1775374247681,-500.0,0.00013699,2]
[419776685,1775374247690,-569.20510167,0.00013699,2]
[419776686,1775374247699,-500.0,0.00013699,2]
[419776687,1775374247710,-500.0,0.00013699,2]
[419776688,1775374247719,-312.74353669,0.00013699,2]
[419776689,1775374247728,-500.0,0.00013699,2]
[419776690,1775374247738,-160.34417201,0.00013699,2]
[419776691,1775374247747,-500.0,0.00013699,2]
[419776692,1775374247756,-500.0,0.00013699,2]
[419776693,1775374247766,-607.20051974,0.00013699,2]
[419776694,1775374247776,-500.0,0.00013699,2]
[419776695,1775374247786,-160.7467095,0.00013699,2]
[419776696,1775374247796,-519.03182682,0.00013699,2]
[419776697,1775374247805,-500.0,0.00013699,2]
[419776698,1775374247815,-500.0,0.00013699,2]
[419776699,1775374247824,-500.0,0.00013699,2]
[419776700,1775374247834,-162.72924009,0.00013699,2]
[419776701,1775374247843,-500.0,0.00013699,2]
[419776702,1775374247852,-500.0,0.00013699,2]
[419776703,1775374247862,-500.0,0.00013699,2]
[419776704,1775374247871,-202.64993829,0.00013699,2]
[419776705,1775374247880,-500.0,0.00013699,2]
[419776706,1775374247890,-500.0,0.00013699,2]
[419776707,1775374247899,-518.73332026,0.00013699,2]
[419776708,1775374247909,-500.0,0.00013699,2]
[419776709,1775374247918,-500.0,0.00013699,2]
[419776710,1775374247927,-210.98153295,0.00013699,2]
[419776711,1775374247937,-500.50066882,0.00013699,2]
[419776712,1775374247946,-198.65,0.00013699,2]
[419776713,1775374247955,-151.0,0.00013699,2]
[419776714,1775374247964,-151.0,0.00013699,2]
[419776715,1775374247974,-151.0,0.00013699,2]
[419776716,1775374247984,-851.442194,0.00013699,2]
[419776717,1775374247993,-851.442194,0.00013699,2]
[419776718,1775374248002,-851.442194,0.00013699,2]
[419776719,1775374248012,-851.442194,0.00013699,2]
[419776720,1775374248021,-151.0,0.00013699,2]
[419776721,1775374248031,-151.0,0.00013699,2]
[419776722,1775374248040,-151.0,0.00013699,2]
[419776723,1775374248050,-332.258444,0.00013699,2]
[419776724,1775374248059,-332.258444,0.00013699,2]
[419776725,1775374248068,-332.258444,0.00013699,2]
[419776726,1775374248078,-332.258444,0.00013699,2]
[419776727,1775374248087,-553.958559,0.00013699,2]
[419776728,1775374248096,-553.958559,0.00013699,2]
[419776729,1775374248105,-553.958559,0.00013699,2]
[419776730,1775374248114,-553.958559,0.00013699,2]
[419776731,1775374248123,-151.0,0.00013699,2]
[419776732,1775374248133,-151.0,0.00013699,2]
[419776733,1775374248142,-445.95006954,0.00013699,2]
[419776734,1775374248151,-156.571505,0.00013699,2]
[419776735,1775374248160,-156.571505,0.00013699,2]
[419776736,1775374248169,-150.0,0.000137,2]
[419776737,1775374248179,-150.0,0.000137,2]
[419776738,1775374248188,-150.0,0.000137,2]
[419776739,1775374248197,-218.48382407,0.000137,2]
[419776740,1775374248207,-468.18,0.0001376,2]
[419776741,1775374248216,-151.0,0.00013786,2]
[419776742,1775374248225,-151.0,0.00013786,2]
[419776743,1775374248235,-488.611803,0.00013786,2]
[419776744,1775374248244,-488.611803,0.00013786,2]
[419776745,1775374248253,-488.611803,0.00013786,2]
[419776746,1775374248263,-488.611803,0.00013786,2]
[419776747,1775374248272,-166.66,0.00013836,2]
[419776748,1775374248281,-536.08,0.00013899,2]
[419776749,1775374248290,-698.2,0.00013899,2]
[419776750,1775374248300,-500.0,0.00013899,2]
[419776751,1775374248309,-200.0,0.000139,2]
[419776752,1775374248318,-200.0604195,0.000139,3]
[419776753,1775374248327,-4200.0,0.000139,5]
[419776754,1775374248337,-151.0,0.00013914,2]
[419776755,1775374248346,-161.017728,0.00013914,2]
[419776756,1775374248355,-499.52,0.00013936,2]
[419776757,1775374248364,-308.0,0.00013945,2]
[419776758,1775374248374,-666.0,0.00013954,2]
[419776759,1775374248383,-500.0,0.00013954,2]
[419776760,1775374248392,-500.0,0.00013954,2]
[419776761,1775374248401,-489496.1972991,0.00013954,2]
[419776762,1775374248411,-151.0,0.00013955,2]
[419776763,1775374248420,-151.0,0.00013955,2]
[419776764,1775374248429,-151.0,0.00013955,2]
[419776765,1775374248438,-151.0,0.00013955,2]
[419776766,1775374248448,-151.0,0.00013955,2]
[419776767,1775374248457,-851.442194,0.00013955,2]
[419776768,1775374248466,-851.442194,0.00013955,2]
[419776769,1775374248475,-851.442194,0.00013955,2]
[419776770,1775374248484,-851.442187,0.00013955,2]
[419776771,1775374248494,-151.0,0.00013955,2]
[419776772,1775374248503,-151.0,0.00013955,2]
[419776773,1775374248512,-151.0,0.00013955,2]
[419776774,1775374248521,-332.258444,0.00013955,2]
[419776775,1775374248531,-332.258444,0.00013955,2]
[419776776,1775374248540,-332.258444,0.00013955,2]
[419776777,1775374248549,-332.258435,0.00013955,2]
[419776778,1775374248559,-553.958559,0.00013955,2]
[419776779,1775374248568,-553.958559,0.00013955,2]
[419776780,1775374248578,-553.958559,0.00013955,2]
[419776781,1775374248587,-553.958555,0.00013955,2]
[419776782,1775374248596,-151.0,0.00013955,2]
[419776783,1775374248605,-154.93142,0.00013955,2]
[419776784,1775374248614,-488.611803,0.00013955,2]
[419776785,1775374248623,-488.611803,0.00013955,2]
[419776786,1775374248632,-488.611803,0.00013955,2]
[419776787,1775374248641,-488.611809,0.00013955,2]
[419776788,1775374248650,-151.0,0.00013955,2]
[419776789,1775374248659,-151.0,0.00013955,2]
[419776790,1775374248669,-156.571505,0.00013955,2]
[419776791,1775374248678,-156.571505,0.00013955,2]
[419776792,1775374248687,-150.0,0.00013973,2]
[419776793,1775374248696,-150.0,0.00013973,2]
[419776794,1775374248705,-150.0,0.00013973,2]
[419776795,1775374248714,-150.0,0.00013973,2]
[419776796,1775374248723,-150.0,0.00013973,2]
[419776797,1775374248732,-166.66,0.00013973,2]
[419776798,1775374248742,-666.0,0.00013996,2]
[419776799,1775374248751,-500.0,0.00013996,2]
[419776800,1775374248760,-151.0,0.00013997,2]